bitfinex-derivatives/quotes_ETHF0:USTF0_20250130
["timestamp","ask_amount","ask_price","bid_price","bid_amount"]
[1738209421402,4.6018,3196.9,3196.6,0.62569]
[1738209421701,4.6018,3196.9,3196.6,0.62568]
[1738209421902,4.6018,3196.9,3196.7,0.62567]
[1738209422100,4.6018,3196.9,3196.4,2.5181543]
[1738209422300,4.6018,3196.9,3196.6,0.62569]
[1738209422497,4.6018,3196.9,3196.4,2.5181543]
[1738209423002,1.39,3197.0,3196.4,2.5181543]
[1738209423302,0.62564,3196.9,3196.4,3.1438743]
[1738209424601,1.39,3197.0,3196.4,3.1438743]
[1738209424602,0.62565,3196.8,3196.4,3.1438743]
[1738209424799,0.62564,3196.9,3196.4,3.1438743]
[1738209425308,1.39,3197.0,3196.4,3.1438743]
[1738209425309,0.62566,3196.8,3196.4,3.1438743]
[1738209425506,1.39,3197.0,3196.4,0.62573]
[1738209425705,0.62566,3196.8,3196.4,0.62573]
[1738209426209,0.62568,3196.7,3196.4,0.62573]
[1738209426406,3.83348,3196.7,3196.4,0.62573]
[1738209426905,3.2078,3196.7,3196.5,0.6257]
[1738209427307,1.39,3197.0,3196.5,0.6257]
[1738209427509,0.62567,3196.7,3196.5,0.6257]
[1738209428206,0.62567,3196.7,3196.5,0.44167025]
[1738209428603,0.62566,3196.8,3196.1,2.19027]
[1738209428809,0.62566,3196.8,3196.5,0.6257]
[1738209429011,0.62566,3196.8,3196.1,1.51260719]
[1738209429511,0.62567,3196.7,3196.5,0.6257]
[1738209430708,0.6256,3197.1,3196.9,0.62563]
[1738209430904,0.6256,3197.1,3196.9,0.62562]
[1738209431104,0.62559,3197.2,3196.6,0.62569]
[1738209431304,1.369,3197.3,3196.9,0.62563]
[1738209431609,1.99159,3197.2,3196.9,0.62563]
[1738209431811,1.365,3197.2,3196.9,0.62563]
[1738209432005,1.99059,3197.2,3196.5,3.44179892]
[1738209432212,1.365,3197.2,3196.9,0.62562]
[1738209432715,1.362,3197.2,3196.5,3.2078]
[1738209433008,4.5698,3197.2,3196.5,3.2078]
[1738209433208,0.62559,3197.1,3196.5,3.2078]
[1738209433410,7.3007815,3197.2,3196.5,3.2078]
[1738209433609,0.62562,3197.0,3196.5,3.8335]
[1738209433812,0.6256,3197.1,3196.6,0.62568]
[1738209434311,0.6256,3197.1,3196.6,0.44464071]
[1738209434511,1.357,3197.0,3196.6,0.44464071]
[1738209434706,1.357,3197.0,3196.8,0.62565]
[1738209434912,1.357,3197.0,3196.7,0.62566]
[1738209435508,1.357,3197.0,3196.5,3.2078]
[1738209435715,1.357,3197.0,3196.6,0.62568]
[1738209436420,1.357,3197.0,3196.7,0.62567]
[1738209437002,1.357,3197.0,3196.6,0.62568]
[1738209437214,1.98262,3197.0,3196.6,0.62568]
[1738209437409,1.357,3197.0,3196.6,0.62568]
[1738209437609,1.98261,3197.0,3196.6,0.62568]
[1738209437905,1.98261,3197.0,3196.5,1.97889248]
[1738209437906,1.357,3197.0,3196.5,1.97889248]
[1738209438211,1.357,3197.0,3196.6,0.62568]
[1738209438412,1.98262,3197.0,3196.5,1.97889248]
[1738209438609,1.98262,3197.0,3196.6,0.62568]
[1738209438807,0.62563,3196.9,3196.5,2.60458248]
[1738209439114,0.62564,3196.9,3196.5,2.60459248]
[1738209440120,0.53868699,3197.5,3197.1,0.62558]
[1738209440417,0.00468699,3197.5,3197.4,0.62553]
[1738209440815,5.9387815,3198.3,3197.2,2.7309815]
[1738209440816,3.2078,3198.3,3197.2,2.7309815]
[1738209441013,2.7309815,3198.9,3197.2,2.7309815]
[1738209441014,3.2078,3198.7,3198.3,0.62536]
[1738209441313,0.519,3198.9,3198.2,3.2078]
[1738209441513,0.62535,3198.4,3197.9,0.62542]
[1738209441718,3.2078,3198.5,3197.8,3.2078]
[1738209441909,0.62531,3198.6,3198.1,0.62538]
[1738209442108,0.00468699,3198.5,3198.1,0.62538]
[1738209442315,0.00468699,3198.5,3198.2,0.62538]
[1738209442517,0.63000699,3198.5,3198.1,0.62539]
[1738209442810,0.00468699,3198.5,3198.2,0.62538]
[1738209443015,0.00468699,3198.5,3198.1,0.62539]
[1738209443614,0.63000699,3198.5,3198.1,0.62539]
[1738209443812,0.00468699,3198.5,3197.8,3.21248699]
[1738209444015,0.00468699,3198.5,3197.8,3.83792699]
[1738209444016,0.62537,3198.3,3197.8,3.83792699]
[1738209445021,3.21248699,3198.5,3197.8,3.21248699]
[1738209445227,0.00468699,3198.5,3197.8,3.21248699]
[1738209445706,0.00468699,3198.5,3197.9,2.7309815]
[1738209446016,0.00468699,3198.5,3198.4,0.62534]
[1738209446218,0.00468699,3198.5,3198.4,0.27853435]
[1738209446416,0.00468699,3198.5,3198.2,3.2078]
[1738209446809,0.00468699,3198.5,3198.4,0.62534]
[1738209447311,0.00468699,3198.5,3198.2,3.2078]
[1738209447514,0.00468699,3198.5,3198.4,0.62534]
[1738209455516,0.00468699,3198.5,3198.2,3.2078]
[1738209455716,0.62534,3198.4,3197.8,3.83793699]
[1738209456024,0.4981,3198.3,3197.9,0.62544]
[1738209456414,1.12347,3198.3,3197.9,0.62544]
[1738209456820,0.62539,3198.2,3197.8,3.83793699]
[1738209457016,0.4981,3198.3,3197.8,3.21248699]
[1738209457426,0.4981,3198.3,3197.9,0.62542]
[1738209457427,1.12347,3198.3,3197.9,0.62542]
[1738209457918,0.4981,3198.3,3197.9,0.62542]
[1738209458124,0.4981,3198.3,3197.9,0.62543]
[1738209458316,0.62539,3198.2,3197.9,0.62544]
[1738209458518,1.12347,3198.3,3198.0,0.62541]
[1738209458724,1.12347,3198.3,3197.9,0.62542]
[1738209458925,1.8251,3198.3,3197.8,3.21248699]
[1738209459124,4.5560815,3198.3,3197.8,3.21248699]
[1738209459321,0.62542,3198.0,3197.8,3.21248699]
[1738209459625,0.62543,3198.0,3197.8,3.21248699]
[1738209459824,0.5261,3198.2,3197.9,0.62543]
[1738209460029,1.15148,3198.2,3197.8,3.83793699]
[1738209460212,0.5261,3198.2,3197.8,3.83793699]
[1738209461024,0.5261,3198.2,3197.9,0.62544]
[1738209461228,0.5261,3198.2,3197.8,3.83793699]
[1738209462129,1.15149,3198.2,3197.8,3.21248699]
[1738209462922,0.62543,3198.0,3197.8,3.21248699]
[1738209463121,2.7309815,3198.0,3197.8,3.21248699]
[1738209463325,3.3564115,3198.0,3197.8,3.21248699]
[1738209463515,5.9387815,3198.0,3197.8,0.00468699]
[1738209463722,5.9387815,3198.0,3196.9,3.2078]
[1738209463927,0.62556,3197.3,3196.9,3.2078]
[1738209464122,3.2751815,3197.2,3196.3,3.44775855]
[1738209464330,3.2078,3197.0,3196.3,3.2078]
[1738209464630,3.2078,3197.0,3196.4,0.62573]
[1738209464827,3.83342,3197.0,3196.4,0.62573]
[1738209465032,3.83342,3197.0,3196.4,0.63041699]
[1738209465233,3.2078,3197.0,3196.4,0.00468699]
[1738209465530,0.62563,3196.9,3196.4,0.63041699]
[1738209465829,3.2078,3197.0,3196.4,0.00468699]
[1738209466031,0.62566,3196.8,3196.4,0.00468699]
[1738209466333,2.7309815,3196.9,3196.4,0.00468699]
[1738209466524,0.62571,3196.5,3196.4,0.00468699]
[1738209467525,2.7309815,3196.6,3196.3,3.2078]
[1738209467725,5.9387815,3196.6,3195.5,3.2078]
[1738209467928,2.7309815,3196.3,3195.5,3.2078]
[1738209468126,0.6258,3196.1,3195.5,3.8337]
[1738209468325,0.62579,3196.1,3195.5,3.2078]
[1738209468532,0.5397,3196.0,3195.5,3.2078]
[1738209468733,1.16552,3196.0,3195.5,3.21248699]
[1738209468937,0.62584,3195.9,3195.5,3.21248699]
[1738209469434,1.16552,3196.0,3195.5,3.21248699]
[1738209469836,0.62583,3195.9,3195.5,3.21248699]
[1738209470032,0.62584,3195.9,3195.5,3.21248699]
[1738209470338,3.8965015,3196.0,3195.5,3.21248699]
[1738209470836,0.521,3195.9,3195.5,3.21248699]
[1738209472637,1.14684,3195.9,3195.5,3.21248699]
[1738209474038,0.521,3195.9,3195.5,3.21248699]
[1738209474235,0.521,3195.9,3195.6,0.62587]
[1738209474430,1.334,3195.8,3195.7,0.62585]
[1738209474843,0.521,3195.9,3195.5,3.21248699]
[1738209475033,2.7309815,3196.3,3195.5,3.21248699]
[1738209475244,1.332,3196.2,3195.9,3.2078]
[1738209475740,1.332,3196.2,3195.5,3.21248699]
[1738209475940,1.332,3196.2,3195.9,3.83361]
[1738209476740,1.332,3196.2,3195.9,3.2078]
[1738209476939,1.332,3196.2,3196.0,0.62581]
[1738209477643,0.5356,3196.5,3196.1,0.62579]
[1738209477840,0.5356,3196.5,3195.5,2.73566849]
[1738209477841,1.33468699,3196.8,3196.6,0.62567]
[1738209478047,0.00468699,3196.8,3196.6,0.62567]
[1738209478244,0.00468699,3196.8,3196.7,0.62567]
[1738209478639,0.00468699,3196.8,3196.3,3.2078]
[1738209478841,0.00468699,3196.8,3196.6,0.62568]
[1738209479147,0.00468699,3196.8,3196.5,0.6257]
[1738209479539,0.00468699,3196.8,3196.3,3.2078]
[1738209479540,0.00468699,3196.8,3196.6,0.62569]
[1738209480147,0.00468699,3196.8,3196.7,0.62567]
[1738209482139,1.348,3197.5,3196.7,3.83347]
[1738209482346,1.8931,3197.6,3197.4,0.62552]
[1738209482644,1.8931,3197.6,3196.7,3.2078]
[1738209482645,1.8951,3197.6,3197.5,0.62551]
[1738209482862,1.8951,3197.6,3197.4,0.62552]
[1738209483066,0.5431,3197.6,3197.4,0.62552]
[1738209483265,0.5431,3197.6,3196.7,3.2078]
[1738209483467,1.16861,3197.6,3197.2,0.00468699]
[1738209483665,0.5431,3197.6,3197.2,0.63024699]
[1738209484361,0.5431,3197.6,3197.2,0.00468699]
[1738209484558,0.00468699,3197.8,3197.7,0.62548]
[1738209484758,4.0759815,3198.9,3197.5,5.9387815]
[1738209484968,0.62528,3198.8,3198.0,0.62542]
[1738209485258,0.62528,3198.8,3197.9,3.2078]
[1738209485259,1.343,3198.8,3197.9,3.2078]
[1738209485461,3.3562815,3198.6,3197.9,3.2078]
[1738209485661,4.6982815,3198.6,3198.0,0.62541]
[1738209485858,4.70296849,3198.6,3198.0,0.62541]
[1738209486058,4.07766849,3198.6,3198.1,0.62539]
[1738209486466,4.07766849,3198.6,3198.2,0.62537]
[1738209486659,4.07766849,3198.6,3198.1,0.62539]
[1738209487259,4.07766849,3198.6,3198.0,0.62542]
[1738209487461,4.07766849,3198.6,3197.9,3.2078]
[1738209487666,4.07766849,3198.6,3198.2,0.62537]
[1738209488666,4.07766849,3198.6,3197.9,3.2078]
[1738209488863,4.07766849,3198.6,3198.1,0.62539]
[1738209489063,4.07766849,3198.6,3197.9,3.2078]
[1738209489262,4.07766849,3198.6,3198.2,0.62537]
[1738209489566,4.07766849,3198.6,3198.1,0.62539]
[1738209490360,4.07766849,3198.6,3197.9,3.2078]
[1738209490555,1.34668699,3198.6,3198.1,0.62539]
[1738209490761,0.62535,3198.4,3197.9,3.83323]
[1738209491869,1.96935,3198.4,3197.9,3.83323]
[1738209492172,1.96934,3198.4,3197.9,3.83322]
[1738209492363,1.96934,3198.4,3197.9,3.2078]
[1738209492559,1.96934,3198.4,3198.0,0.62541]
[1738209492767,0.00468699,3198.6,3198.5,0.62532]
[1738209492966,4.5538,3199.4,3198.4,1.0593]
[1738209493162,3.3561815,3199.2,3198.7,3.83307]
[1738209493361,2.7309815,3198.9,3198.4,0.62533]
[1738209493566,0.62529,3198.7,3198.3,3.2078]
[1738209493768,0.5218,3198.8,3198.3,3.2078]
[1738209493970,0.62532,3198.6,3198.3,3.2078]
[1738209494271,2.7309815,3198.6,3198.3,3.2078]
[1738209494472,1.342,3198.7,3198.3,3.83315]
[1738209494666,1.34468699,3198.9,3198.3,3.2078]
[1738209494863,4.07566849,3198.9,3198.3,3.2078]
[1738209495165,2.7309815,3198.6,3198.3,3.2078]
[1738209495571,4.0679815,3198.6,3198.3,3.2078]
[1738209495769,4.6932915,3198.6,3198.3,3.2078]
[1738209495966,4.0679815,3198.6,3198.3,3.2078]
[1738209496371,2.7309815,3198.6,3198.3,3.2078]
[1738209496570,4.6892915,3198.6,3198.3,3.2078]
[1738209496870,0.62533,3198.5,3198.3,3.2078]
[1738209497173,2.7309815,3198.6,3198.4,0.62532]
[1738209497372,1.331,3198.6,3198.4,0.62532]
[1738209497573,1.331,3198.6,3198.3,3.83315]
[1738209497875,1.95431,3198.6,3198.3,3.2078]
[1738209498272,0.62529,3198.7,3198.3,3.83315]
[1738209498472,1.327,3198.5,3198.3,3.83315]
[1738209498665,1.95233,3198.5,3198.3,3.2078]
[1738209499172,1.327,3198.5,3198.3,3.2078]
[1738209499976,1.327,3198.5,3198.4,0.62534]
[1738209500276,1.323,3198.5,3198.3,3.2078]
[1738209500471,1.323,3198.5,3198.4,0.62534]
[1738209500777,1.323,3198.5,3198.3,3.83316]
[1738209501577,1.323,3198.5,3198.3,3.2078]
[1738209502379,1.323,3198.5,3198.3,3.83315]
[1738209502679,1.323,3198.5,3198.3,3.2078]
[1738209502878,0.5101,3198.4,3198.3,3.2078]
[1738209503673,0.5101,3198.4,3198.3,3.83316]
[1738209504474,0.5101,3198.4,3198.3,3.2078]
[1738209504678,0.5101,3198.4,3198.3,3.83316]
[1738209505677,0.5101,3198.4,3198.3,3.2078]
[1738209505877,0.5101,3198.4,3198.3,3.83316]
[1738209506278,0.5101,3198.4,3198.3,3.2078]
[1738209506875,0.5101,3198.4,3198.3,3.83316]
[1738209507075,1.323,3198.5,3198.4,0.62534]
[1738209508075,1.323,3198.5,3198.3,3.2078]
[1738209509283,0.62534,3198.4,3198.3,3.2078]
[1738209509574,0.62536,3198.3,3197.9,3.2078]
[1738209509774,0.4988,3198.2,3198.0,0.62541]
[1738209509972,0.4988,3198.2,3197.9,3.83322]
[1738209510175,0.4988,3198.2,3198.0,0.62541]
[1738209511275,3.2078,3198.4,3198.2,0.62537]
[1738209511572,3.2078,3198.4,3197.9,3.2078]
[1738209511774,3.83314,3198.4,3197.9,3.2078]
[1738209511975,3.83314,3198.4,3198.0,0.62541]
[1738209512773,3.2078,3198.4,3197.9,3.2078]
[1738209512975,3.2078,3198.4,3198.1,0.62539]
[1738209513168,3.2078,3198.4,3198.2,0.62537]
[1738209513575,3.2078,3198.4,3197.9,3.2078]
[1738209513878,3.2078,3198.4,3198.2,0.62537]
[1738209514079,3.2078,3198.4,3198.2,0.44773145]
[1738209514482,3.2078,3198.4,3197.9,3.2078]
[1738209514685,3.2078,3198.4,3198.2,0.62537]
[1738209515084,3.2078,3198.4,3197.9,3.2078]
[1738209515278,3.2078,3198.4,3198.2,0.62538]
[1738209515587,3.2078,3198.4,3198.1,0.62539]
[1738209517482,3.2078,3198.4,3198.2,0.62538]
[1738209517879,3.2078,3198.4,3198.1,0.62539]
[1738209518285,3.2078,3198.4,3198.2,0.62538]
[1738209519186,3.83315,3198.4,3198.0,0.62542]
[1738209519375,3.2078,3198.4,3198.1,0.62539]
[1738209519578,3.2078,3198.4,3198.2,0.62538]
[1738209519779,3.2078,3198.4,3197.9,3.83322]
[1738209519780,4.5318,3198.4,3197.9,3.83322]
[1738209519981,0.62536,3198.3,3197.9,3.83322]
[1738209520184,0.62536,3198.3,3198.0,0.62542]
[1738209520487,4.5318,3198.4,3197.9,3.2078]
[1738209520682,4.5318,3198.4,3197.9,2.77323938]
[1738209520881,0.62541,3198.1,3197.9,2.77323938]
[1738209521082,4.5318,3198.4,3197.9,3.39866938]
[1738209521282,0.62542,3198.1,3197.9,2.77323938]
[1738209521483,0.62542,3198.0,3197.9,2.77323938]
[1738209522881,2.7309815,3198.3,3197.9,2.77323938]
[1738209522882,0.62541,3198.1,3197.9,2.77323938]
[1738209524087,2.7309815,3198.3,3197.9,2.77323938]
[1738209524285,0.62542,3198.0,3197.9,2.77323938]
[1738209524882,2.7309815,3198.3,3197.9,2.77323938]
[1738209525088,0.6254,3198.1,3197.9,2.77323938]
[1738209525386,0.62538,3198.2,3197.9,3.39866938]
[1738209525989,0.62542,3198.0,3197.9,2.77323938]
[1738209526290,0.62538,3198.2,3197.9,2.77323938]
[1738209526489,0.62541,3198.1,3197.9,2.77323938]
[1738209526889,0.62541,3198.1,3197.9,3.39867938]
[1738209527492,2.7309815,3198.3,3197.9,2.77323938]
[1738209527691,2.7309815,3198.3,3198.1,0.62538]
[1738209527891,2.7309815,3198.3,3197.9,2.77323938]
[1738209528295,2.7309815,3198.3,3198.1,0.62538]
[1738209528688,5.15715,3198.4,3198.2,0.62537]
[1738209528689,3.2078,3198.4,3198.2,0.62537]
[1738209528993,1.323,3198.3,3198.2,0.62538]
[1738209529295,1.323,3198.3,3197.9,2.77323938]
[1738209529797,1.323,3198.3,3198.2,0.62538]
[1738209535296,3.2078,3198.4,3198.2,0.62538]
[1738209535496,1.323,3198.3,3198.2,0.62538]
[1738209535998,1.323,3198.3,3198.1,0.62539]
[1738209536200,1.323,3198.3,3198.0,0.62541]
[1738209536395,1.323,3198.3,3197.9,2.77323938]
[1738209536396,4.0539815,3198.3,3197.9,2.77323938]
[1738209536599,4.6793515,3198.3,3197.9,2.77323938]
[1738209536802,4.6793515,3198.3,3197.9,3.39865938]
[1738209537305,4.6793515,3198.3,3197.9,2.56529797]
[1738209537806,4.0539815,3198.3,3197.9,1.93987797]
[1738209538000,4.0539815,3198.3,3198.0,0.62541]
[1738209538401,4.6793515,3198.3,3197.9,2.56530797]
[1738209539010,4.0539815,3198.3,3198.0,0.62542]
[1738209539505,4.6793415,3198.3,3197.9,2.56530797]
[1738209539907,0.62539,3198.2,3197.9,2.56530797]
[1738209540205,4.0539815,3198.3,3197.9,1.93987797]
[1738209540402,0.62546,3197.9,3197.5,3.83331]
[1738209540907,1.16976,3197.8,3197.5,3.2078]
[1738209541108,0.5443,3197.8,3197.5,3.2078]
[1738209541401,0.5443,3197.8,3197.6,0.62548]
[1738209541609,0.5443,3197.8,3197.6,0.6255]
[1738209542401,1.16976,3197.8,3197.5,3.8333]
[1738209542608,0.5443,3197.8,3197.5,3.8333]
[1738209543007,0.5443,3197.8,3197.5,3.83331]
[1738209543405,0.5443,3197.8,3197.2,0.00468699]
[1738209543606,1.16976,3197.8,3197.5,0.62551]
[1738209543809,0.5443,3197.8,3197.2,0.00468699]
[1738209544102,0.62548,3197.7,3197.4,0.62553]
[1738209544307,0.5443,3197.8,3197.3,0.62555]
[1738209544503,0.6255,3197.6,3197.3,0.62555]
[1738209544701,2.7309815,3197.7,3197.2,0.00468699]
[1738209544907,3.2078,3197.6,3197.2,0.00468699]
[1738209545108,0.62555,3197.3,3197.2,0.00468699]
[1738209545308,1.94855,3197.3,3197.2,0.00468699]
[1738209547809,1.323,3197.3,3197.2,0.00468699]
[1738209550317,3.2078,3197.6,3197.2,0.00468699]
[1738209550517,1.323,3197.4,3197.3,0.62555]
[1738209551114,1.323,3197.4,3197.2,0.00468699]
[1738209552612,1.323,3197.4,3197.2,0.63025699]
[1738209552812,1.323,3197.4,3197.2,0.00468699]
[1738209553814,1.94854,3197.4,3197.2,0.00468699]
[1738209554019,1.323,3197.3,3197.2,0.00468699]
[1738209556414,1.94855,3197.3,3197.2,0.00468699]
[1738209556614,1.94855,3197.3,3197.2,0.0032324]
[1738209560521,1.323,3197.3,3197.2,0.0032324]
[1738209560822,1.323,3197.3,3197.2,0.6287924]
[1738209561019,1.323,3197.3,3197.2,0.0032324]
[1738209561220,1.323,3197.3,3197.2,0.6288024]
[1738209562148,3.2078,3197.6,3197.5,0.62551]
[1738209562432,0.5073,3197.9,3197.7,0.62548]
[1738209562738,6.5642115,3198.0,3197.4,0.62551]
[1738209562942,3.2078,3197.5,3197.4,0.62551]
[1738209563235,4.0539815,3198.0,3197.3,0.62555]
[1738209563430,3.2078,3197.9,3197.6,0.62548]
[1738209563632,3.2078,3197.9,3197.2,0.0032324]
[1738209563933,3.2078,3197.9,3197.8,0.62546]
[1738209565431,3.2078,3197.9,3197.5,1.0423]
[1738209565634,3.2078,3197.9,3197.8,0.62546]
[1738209565831,3.2078,3197.9,3197.7,0.62547]
[1738209566138,3.2078,3197.9,3197.5,1.6678]
[1738209566833,3.2078,3197.9,3197.5,1.0423]
[1738209567035,3.2078,3197.9,3197.8,0.62546]
[1738209567435,3.2078,3197.9,3197.8,0.43148081]
[1738209567936,0.62538,3198.2,3197.7,0.62546]
[1738209569735,5.67547,3198.3,3197.8,0.62545]
[1738209570239,4.35347,3198.3,3197.8,0.62545]
[1738209570425,3.7281,3198.3,3198.0,0.6254]
[1738209571028,3.7281,3198.3,3197.5,1.0423]
[1738209571233,3.7281,3198.3,3197.9,0.62543]
[1738209571834,3.7281,3198.3,3197.5,1.0423]
[1738209572233,3.7281,3198.3,3197.9,0.62543]
[1738209572736,3.7281,3198.3,3197.5,1.0423]
[1738209573140,3.7281,3198.3,3197.7,2.7309815]
[1738209573447,3.7281,3198.3,3198.0,0.6254]
[1738209573934,3.7281,3198.3,3197.9,0.62542]
[1738209574639,3.7281,3198.3,3197.8,0.513]
[1738209575043,2.47241,3198.6,3198.3,0.62535]
[1738209575044,1.8471,3198.6,3198.3,0.62535]
[1738209575944,3.7133,3198.8,3198.3,2.7309815]
[1738209576144,3.7133,3198.8,3198.4,0.62533]
[1738209576531,3.7133,3198.8,3198.5,0.6253]
[1738209576737,3.7133,3198.8,3198.3,2.7309815]
[1738209576938,3.7133,3198.8,3198.5,0.62531]
[1738209577137,3.7133,3198.8,3198.4,0.62533]
[1738209577939,3.7133,3198.8,3198.3,3.2366815]
[1738209578144,0.62528,3198.7,3198.3,3.8620315]
[1738209578334,3.7133,3198.8,3198.3,3.2366815]
[1738209578539,4.33857,3198.8,3198.4,0.62534]
[1738209578943,0.62528,3198.7,3198.3,3.8620215]
[1738209579139,3.7133,3198.8,3198.3,3.2366815]
[1738209579336,4.33857,3198.8,3198.3,3.8620215]
[1738209579647,4.33857,3198.8,3198.4,0.62533]
[1738209579943,3.7133,3198.8,3198.3,0.5057]
[1738209580144,3.7133,3198.8,3198.2,3.2078]
[1738209580445,0.62531,3198.6,3198.2,3.83317]
[1738209581246,0.62531,3198.6,3198.2,0.62537]
[1738209581452,3.7133,3198.8,3198.2,0.62537]
[1738209581647,0.62531,3198.6,3198.2,0.62537]
[1738209584040,0.62533,3198.5,3198.0,2.7309815]
[1738209584241,0.62533,3198.5,3198.2,0.62538]
[1738209584641,0.62533,3198.5,3198.0,2.7309815]
[1738209584838,0.62533,3198.5,3198.2,0.62537]
[1738209585352,0.62531,3198.6,3198.3,0.62535]
[1738209585552,0.62528,3198.7,3198.2,0.62537]
[1738209585754,0.62532,3198.5,3198.2,0.62537]
[1738209586546,3.7133,3198.8,3198.0,2.7309815]
[1738209586744,0.62531,3198.6,3198.3,0.62536]
[1738209587153,0.62531,3198.6,3198.2,0.62537]
[1738209587354,0.00468699,3198.9,3198.8,0.62526]
[1738209589541,3.7346,3199.7,3199.4,0.62514]
[1738209589542,4.2547,3199.7,3199.4,0.62514]
[1738209590148,4.87979,3199.7,3199.3,3.3561315]
[1738209590349,3.2078,3203.6,3200.6,3.2078]
[1738209590553,0.39140565,3203.9,3203.8,0.62428]
[1738209590748,3.2078,3204.3,3203.6,3.2078]
[1738209591054,3.2078,3205.5,3204.2,8.669763]
[1738209591257,3.2078,3205.5,3205.1,2.7309815]
[1738209591258,1.416,3205.4,3205.1,2.7309815]
[1738209591552,0.00468699,3205.2,3205.1,2.7309815]
[1738209592148,15.77398029,3206.9,3205.1,2.7309815]
[1738209592447,1.462,3206.4,3206.3,3.2078]
[1738209592648,1.464,3206.4,3206.3,3.2078]
[1738209592847,1.056,3206.8,3206.3,3.2078]
[1738209593047,1.47039712,3206.5,3206.3,3.2078]
[1738209593550,1.46839712,3206.5,3206.3,3.2078]
[1738209594256,1.46539712,3206.5,3206.3,3.2078]
[1738209594658,2.08915712,3206.5,3206.3,3.2078]
[1738209594845,1.46539712,3206.5,3206.3,3.2078]
[1738209595457,0.62378,3206.4,3206.3,3.2078]
[1738209595858,0.62378,3206.4,3206.3,1.32710484]
[1738209595859,7.07478,3206.4,3206.3,1.32710484]
[1738209596156,0.62383,3206.2,3205.9,3.2078]
[1738209596457,9.74137388,3206.4,3205.9,3.2078]
[1738209596458,2.07285,3206.1,3205.9,3.2078]
[1738209596762,1.449,3206.1,3205.9,3.2078]
[1738209596953,0.62386,3206.0,3205.9,3.2078]
[1738209597148,0.62386,3206.0,3205.9,2.3878]
[1738209597360,9.6548,3206.0,3205.2,3.2078]
[1738209597552,0.62388,3205.9,3205.2,3.2078]
[1738209597754,0.62393,3205.7,3205.2,3.2078]
[1738209598059,1.445,3205.7,3205.2,3.2078]
[1738209598255,0.62392,3205.7,3205.2,3.2078]
[1738209598454,0.62395,3205.5,3205.2,3.2078]
[1738209598853,0.62393,3205.6,3205.2,3.2078]
[1738209599160,1.443,3205.7,3205.2,3.2078]
[1738209599350,0.62407,3204.9,3204.8,0.00467938]
[1738209602263,1.429,3204.9,3204.3,3.2078]
[1738209602461,3.2078,3205.0,3204.3,3.2078]
[1738209602963,1.9581,3205.5,3204.7,3.2078]
[1738209603466,0.00467938,3205.4,3204.8,0.00467938]
[1738209603661,0.00467938,3205.4,3205.1,3.2078]
[1738209604059,0.00467938,3205.4,3205.1,6.49817388]
[1738209605168,0.00467938,3205.4,3205.1,3.2078]
[1738209608558,0.00467938,3205.4,3205.3,0.62399]
[1738209609459,0.00467938,3205.4,3205.1,6.49817388]
[1738209609664,0.00467938,3205.4,3205.2,0.62401]
[1738209609874,0.00467938,3205.4,3205.3,0.62399]
[1738209610569,1.42042004,3206.4,3205.1,6.49817388]
[1738209610874,0.00342004,3206.4,3206.0,3.2078]
[1738209611064,0.00342004,3206.4,3206.0,3.83165]
[1738209611264,0.62351,3207.9,3207.2,0.62361]
[1738209611468,0.0027595,3208.0,3207.8,3.2078]
[1738209611671,0.62349,3207.9,3207.8,3.2078]
[1738209612366,0.62349,3207.9,3207.6,0.00467938]
[1738209612367,0.62353,3207.7,3207.6,0.00467938]
[1738209612569,0.6237,3206.8,3206.7,3.2078]
[1738209613567,1.435,3207.2,3206.7,3.2078]
[1738209613863,0.62368,3207.0,3206.7,3.2078]
[1738209614069,3.29037388,3207.6,3206.7,3.2078]
[1738209614272,3.29037388,3207.6,3207.2,3.2078]
[1738209614273,2.05858,3207.5,3207.2,3.2078]
[1738209614467,3.29037388,3207.6,3207.2,3.2078]
[1738209614669,1.446,3207.5,3206.8,3.2078]
[1738209614868,3.29037388,3207.2,3206.4,0.00467938]
[1738209615066,2.06957,3207.5,3207.0,3.2078]
[1738209615362,0.62364,3207.1,3207.0,3.2078]
[1738209615563,0.62369,3206.9,3206.5,3.2078]
[1738209615770,3.2078,3207.3,3206.5,3.2078]
[1738209615974,3.83141,3207.3,3206.9,3.2078]
[1738209616174,1.151,3207.9,3207.2,0.62362]
[1738209616373,1.151,3207.9,3206.5,3.29037388]
[1738209616374,0.0027595,3208.0,3207.3,6.49817388]
[1738209616571,0.0027595,3208.0,3207.9,0.62349]
[1738209616867,0.0027595,3208.0,3207.8,1.11819]
[1738209617071,0.0027595,3208.0,3207.7,3.2078]
[1738209617669,1.455,3207.9,3207.7,3.2078]
[1738209618069,0.62351,3207.8,3207.7,3.2078]
[1738209618774,0.6262395,3208.0,3207.7,3.2078]
[1738209619073,0.0027595,3208.0,3207.7,3.2078]
[1738209619279,0.0027595,3208.0,3207.7,3.83131]
[1738209619478,0.0027595,3208.0,3207.7,6.49817388]
[1738209619682,0.5189,3209.5,3207.7,6.49817388]
[1738209619683,3.83097,3209.6,3208.8,0.6233]
[1738209619879,3.2078,3209.6,3208.7,3.2078]
[1738209620076,0.62323,3209.3,3208.7,3.2078]
[1738209620373,1.45,3209.4,3208.7,3.2078]
[1738209620572,0.62325,3209.2,3208.7,3.2078]
[1738209620773,0.62325,3209.2,3208.7,3.21247938]
[1738209621074,0.62328,3209.0,3208.7,3.21247938]
[1738209621269,0.62327,3209.1,3208.7,3.21247938]
[1738209621473,1.446,3209.2,3208.7,3.21247938]
[1738209621669,1.446,3209.2,3208.7,0.00467938]
[1738209621670,0.62331,3208.8,3208.7,0.00467938]
[1738209622476,2.06631,3208.8,3208.7,0.00467938]
[1738209623776,7.00557388,3209.3,3208.7,0.00467938]